Cogmind - Beta 16 @@@ ROGUE MODE // 2025.11.25 @ 15:24:29 Player: ClassActJerk Result: Destroyed by Y-45 Defender with Heavy Assault Rifle Performance ------------- Evolutions (1) 500 Regions Visited (2) 400 Robots Destroyed (6) 30 Value Destroyed (194) 194 Prototype IDs (0) 0 Alien Tech Used (0) 0 Bonus (0) 0 TOTAL SCORE: 1124 Bonus ------- None Cogmind --------- Core Integrity 0/400 Matter 312/400 Energy 100/100 System Corruption 0% Temperature Cool (9) Movement Core (1400) Ox27 Location -9/Materials Parts ------- > --- POWER (1) -------- (None) > --- PROPULSION (3) --- (None) > --- UTILITY (2) ------ Huge Storage Unit Medium Matter Pod > --- WEAPON (3) ------- Mace > --- INVENTORY (25) --- Utility Shielding Peak State ------------ > --- POWER ------------ Light Ion Engine > --- PROPULSION ------- Aluminum Leg Aluminum Leg > --- UTILITY ---------- Small Storage Unit Sensor Array > --- WEAPON ----------- Light Assault Rifle > --- INVENTORY -------- Light Ion Engine [Rating: 6] Favorites ----------- Power Light Ion Engine Engine Light Ion Engine Propulsion Aluminum Leg Leg Aluminum Leg Utility Sensor Array Device Sensor Array Storage Huge Storage Unit Weapon Light Assault Rifle Ballistic Gun Light Assault Rifle Impact Weapon Mace Build | -11 -10 -9 ------- Run | Yrd Mat Mat Slots Evolved 2 | . . 2 Power . | . . . Propulsion 1 | . . 1 Utility . | . . . Weapon 1 | . . 1 Parts Attached 10 | 4 3 3 Power 2 | 1 . 1 Engine 2 | 1 . 1 Core . | . . . Reactor . | . . . Propulsion 2 | 1 1 . Treads . | . . . Leg 2 | 1 1 . Wheel . | . . . Hover . | . . . Flight . | . . . Utility 4 | 1 2 1 Device 1 | . 1 . Storage 3 | 1 1 1 Processor . | . . . Hackware . | . . . Protection . | . . . Artifact . | . . . Weapon 2 | 1 . 1 Energy Gun . | . . . Energy Cannon . | . . . Ballistic Gun 1 | 1 . . Ballistic Cannon . | . . . Launcher . | . . . Special Weapon . | . . . Impact Weapon 1 | . . 1 Slashing Weapon . | . . . Piercing Weapon . | . . . Special Melee Weapon . | . . . Unidentified Prototypes . | . . . Parts Lost 6 | . . 6 Power 2 | . . 2 Propulsion 2 | . . 2 Utility 1 | . . 1 Weapon 1 | . . 1 Highest Loss Streak 6 | . . 6 To Critical Strikes . | . . . Average Backups 2 | 1 2 2 Power . | . 1 . Propulsion . | . . . Utility 1 | . . 1 Weapon . | . . . Tool/Special . | . . . Unused Backups 1 | . . 1 Power . | . . . Propulsion . | . . . Utility 1 | . . 1 Weapon . | . . . Tool/Special . | . . . Average Slot Usage (%) 72 | . 83 57 Engine 11 | . 14 8 Leg 22 | . 27 16 Device 11 | . 13 9 Storage 13 | . 14 12 Ballistic Gun 11 | . 14 9 Peak Build Rating 6 | 4 6 6 Average Rating 5 | 3 5 5 On Entrance 3 | . 4 6 Avg Prop Armor Cover (%) . | . . . Naked Turns . | . . . Heaviest Build 87 | 9 85 87 Greatest Support 20 | 10 20 20 Greatest Overweight (x) 28 | . 4 28 Average Overweight (x) 2 | . 1 5 Largest Inventory Capacity 25 | 8 25 25 Average Capacity 22 | 7 21 25 Most Carried 4 | 4 3 4 Average Carried 2 | 1 2 2 Final Capacity 25 | 8 25 25 Final Carried 3 | 2 3 1 Class Distribution -------------------- 100% | Mutant Dominant Class ---------------- Mutant | -10/Materials Mutant | -9/Materials Resources | -11 -10 -9 ----------- Run | Yrd Mat Mat Matter Collected 307 | 146 39 122 Remotely . | . . . Salvage Created 219 | . 39 180 Parts 7 | . 2 5 Haulers Intercepted . | . . . Recyclers Shooed 2 | . . 2 Parts Field Recycled . | . . . Retrieved Matter . | . . . Parts Self-Destructed . | . . . Prevented . | . . . Parts Restored . | . . . Kills | -11 -10 -9 ------- Run | Yrd Mat Mat Combat Hostiles Destroyed 5 | . 1 4 Guns 4 | . 1 3 Classes Destroyed 3 | . 1 2 Mechanic 1 | . . 1 Grunt 4 | . 1 3 Sentry 1 | . . 1 Best Kill Streak 2 | . 1 2 Combat Bots Only 1 | . 1 1 Max Kills in Single Turn 1 | . 1 1 Gunslinging . | . . . Exploded . | . . . Melee . | . . . Uniques/NPCs Destroyed . | . . . Combat | -11 -10 -9 -------- Run | Yrd Mat Mat Hostile Shots Fired 104 | . 8 96 Missed 23 | . 4 19 Hits 81 | . 4 77 Projectile 81 | . 4 77 Critical Strikes 1 | . . 1 Damage Taken 1090 | . 43 1047 Core 413 | . . 413 Absorbed by Shields . | . . . Core Remaining (%) 100 | 100 100 . Volleys Fired 30 | . 6 24 Largest 1 | . 1 1 Hottest 20 | . 20 20 Shots Fired 30 | . 6 24 Gun 30 | . 6 24 Cannon . | . . . Launcher . | . . . Special . | . . . Kinetic 30 | . 6 24 Thermal . | . . . Explosive . | . . . Electromagnetic . | . . . Robot Hit Streak 6 | . 5 6 Robot Miss Streak 1 | . 1 1 Penetration Max . | . . . Secondary Targets . | . . . Shots Hit Robots 29 | . 5 24 Core Hits 11 | . 2 9 Critical Kills . | . . . Critical Parts Destroyed 2 | . . 2 Critical Strikes 2 | . . 2 Smash 2 | . . 2 Melee Attacks 7 | . . 7 Impact 7 | . . 7 Slashing . | . . . Piercing . | . . . Sneak Attacks 1 | . . 1 Combat Hostiles . | . . . Follow-up Attacks . | . . . Damage Inflicted 402 | . 51 351 Guns 191 | . 41 150 Cannons . | . . . Explosions . | . . . Melee 201 | . . 201 Ramming 10 | . 10 . Kinetic 191 | . 41 150 Thermal . | . . . Explosive . | . . . Electromagnetic . | . . . Impact 201 | . . 201 Slashing . | . . . Piercing . | . . . Highest Corruption . | . . . Average Corruption . | . . . Corruption Purged . | . . . Corruption Blocked . | . . . Overload Shots . | . . . Overflow Damage 117 | . . 117 Projectiles . | . . . Explosions . | . . . Melee 117 | . . 117 Knockbacks 1 | . . 1 Impact 1 | . . 1 Kinetic . | . . . Secondary . | . . . Self-Inflicted Damage . | . . . Shots . | . . . Rammed . | . . . Targets Rammed 1 | . 1 . Kicked 1 | . 1 . Crushed . | . . . Highest Temperature 6 | . 6 3 Average Temperature 3 | . 6 2 Received Heat Transfer 426 | . 24 402 Siege Activations . | . . . Martial Activations . | . . . Shielding Activations . | . . . Robots Disrupted . | . . . Combat Hostiles . | . . . Robots Corrupted 2 | . . 2 Combat Hostiles 1 | . . 1 Parts Fried 2 | . . 2 Impact Corruptions 5 | . . 5 Robots Melted . | . . . Combat Hostiles . | . . . Parts Melted . | . . . Heat Transferred . | . . . Parts Sabotaged . | . . . Parts Stolen . | . . . Parts Stripped . | . . . Power Chain Reactions . | . . . Alert | -11 -10 -9 ------- Run | Yrd Mat Mat Maximum Alert Level . | . . . Low Security (%) 100 | 100 100 100 Level 1 . | . . . Level 2 . | . . . Level 3 . | . . . Level 4 . | . . . Level 5 . | . . . High Security . | . . . Max Security . | . . . Peak Influence 45 | . 30 45 Initial . | . . . Average 4 | . 1 8 Influence Increases 162 | . 38 124 Destroy 0b10 Robot/C 100 | . 20 80 Destroy 0b10 Robot/NC 5 | . . 5 Destroy Leader 30 | . 10 20 Successful Hack 12 | . 8 4 Lose Combat Pursuer 15 | . . 15 Influence Decreases 135 | . 38 97 Time Decay 115 | . 38 77 Lost Part 20 | . . 20 Squads Dispatched 2 | . 1 1 Investigation 2 | . 1 1 Extermination . | . . . Reinforcement . | . . . Assault . | . . . Garrison . | . . . Intercept . | . . . Searches Triggered . | . . . Construction Impeded . | . . . Haulers Reinforced . | . . . Active Scanning Responses . | . . . Cargo Convoy Interrupts . | . . . Stealth | -11 -10 -9 --------- Run | Yrd Mat Mat Distress Signals 2 | . . 2 Communications Jammed . | . . . Distress Signals . | . . . Times Spotted 11 | . 5 6 Peak Tracking Total 3 | . 2 3 Tactical Retreats 1 | . . 1 Traps | -11 -10 -9 ------- Run | Yrd Mat Mat Traps Triggered . | . . . Indirectly . | . . . Trap Hack Attempts . | . . . Triggered . | . . . Disarmed . | . . . Reprogrammed . | . . . Reused . | . . . Traps Extracted . | . . . Installed . | . . . Triggered . | . . . Machines | -11 -10 -9 ---------- Run | Yrd Mat Mat Machines Disabled . | . . . Max in Single Turn . | . . . Machines Repaired . | . . . Machines Dismantled . | . . . Machines Sabotaged . | . . . Overloaded Fab Kills . | . . . Hacking | -11 -10 -9 --------- Run | Yrd Mat Mat Machines Accessed 3 | . 2 1 Terminals 3 | . 2 1 Fabricators . | . . . Repair Stations . | . . . Recycling Units . | . . . Scanalyzers . | . . . Garrison Access . | . . . Total Hacks 7 | . 4 3 Successful 2 | . 1 1 Failed 5 | . 3 2 Catastrophic . | . . . Database Lockouts . | . . . Manual 6 | . 4 2 Terminals 7 | . 4 3 Fabricators . | . . . Repair Stations . | . . . Recycling Units . | . . . Scanalyzers . | . . . Garrison Access . | . . . Terminal Hacks 2 | . 1 1 Branch Access Points 1 | . 1 . Emergency Access Points 1 | . . 1 Fabricator Hacks . | . . . Repair Station Hacks . | . . . Recycling Unit Hacks . | . . . Scanalyzer . | . . . Garrison Access Hacks . | . . . Unauthorized Hacks . | . . . Terminals . | . . . Fabricators . | . . . Repair Stations . | . . . Recycling Units . | . . . Scanalyzers . | . . . Garrison Access . | . . . Data Cores Recovered . | . . . Used . | . . . Hacking Detections 2 | . 1 1 Full Trace Events 2 | . 1 1 Feedback Events . | . . . Feedback Blocked . | . . . Robot Schematics Acquired . | . . . Robots Built . | . . . Authchips . | . . . Time . | . . . Total Robot Build Rating . | . . . Part Schematics Acquired . | . . . Parts Built . | . . . Authchips . | . . . Time . | . . . Total Part Build Rating . | . . . Part Studies Acquired . | . . . Parts Repaired . | . . . Time . | . . . Parts Recycled . | . . . Recycled Matter . | . . . Retrieved Matter . | . . . Retrieved Components . | . . . Parts Scanalyzed . | . . . Part Schematics Acquired . | . . . Parts Damaged . | . . . Bothacking | -11 -10 -9 ------------ Run | Yrd Mat Mat Used RIF Installer . | . . . Robots Hacked . | . . . Non-combat . | . . . Combat . | . . . Robot Hacks Applied . | . . . Relay Couplers Released . | . . . Fabnet Peak Effective % . | . . . Robots Rewired . | . . . Allies Hacked . | . . . Hacks Repelled . | . . . Allies | -11 -10 -9 -------- Run | Yrd Mat Mat Total Allies . | . . . Largest Group . | . . . Highest-Rated Group . | . . . Highest-Rated Ally . | . . . Total Orders . | . . . Ally Attacks . | . . . Total Damage . | . . . Kills . | . . . Allies Corrupted . | . . . Allies Melted . | . . . Intel | -11 -10 -9 ------- Run | Yrd Mat Mat Active Infowar (turns) 1217 | . 762 455 Sensors 1217 | . 762 455 Robot Analysis Total . | . . . Derelict Logs Recovered . | . . . Drone Launches . | . . . Drone Recoveries . | . . . Exploration | -11 -10 -9 ------------- Run | Yrd Mat Mat Turns Passed 1413 | 63 803 547 Spaces Moved 369 | 54 210 105 Core 22 | 16 . 6 Treads . | . . . Legs 347 | 38 210 99 Wheels . | . . . Hover . | . . . Flight . | . . . Fastest Speed 50 | 50 120 400 Average Speed 284 | 99 244 459 Slowest Speed 1450 | 120 400 1450 Overloaded Moves . | . . . Propulsion Burnouts . | . . . Robots Hopped . | . . . Potential Cave-ins . | . . . Cave-ins Triggered . | . . . Exploration Rate (%) 19 | 4 38 16 Regions Visited 2 Branch Regions . Pre-discovered Areas . | . . . Known Exits Taken . | . . . Unknown Exits Taken 2 | 1 1 . Scrap Searched . | . . . Spaces Dug . | . . . Terrain Destroyed . | . . . Melee . | . . . Projectile . | . . . AOE . | . . . Terrain Rammed . | . . . Walls Destroyed . | . . . Machines Disabled . | . . . Actions | -11 -10 -9 --------- Run | Yrd Mat Mat Total 703 | 63 496 144 Wait 276 | . 272 4 Move 367 | 53 209 105 Hop . | . . . Pick Up 11 | 6 4 1 Fast Attach . | . . . Attach 10 | 4 3 3 Detach . | . . . Swap . | . . . Drop 1 | . 1 . Fire 30 | . 6 24 Melee 7 | . . 7 Ram . | . . . Kick 1 | . 1 . Crush . | . . . Escape Stasis . | . . . Rewire . | . . . Trap . | . . . Miscellaneous . | . . . Route ------- -11/Scrapyard -10/Materials (discovered 3 exits: *Mat / *Min x2) -9/Materials History --------- Turn | Location | Event 2 | -11/Scrapyard | Met Revision 17 3 | -11/Scrapyard | Discovered new exit (range 16) 64 | -11/Scrapyard | Entered Materials 138 | -10/Materials | Discovered new exit (range 13) 197 | -10/Materials | Identified exit to Mines 318 | -10/Materials | Build established: Mutant 835 | -10/Materials | Discovered new exit (range 8) 867 | -10/Materials | Entered another Materials area 867 | -9/Materials | Evolved 2 slots: Propulsion x1, Weapon x1 1341 | -9/Materials | Core integrity fell below 50% 1374 | -9/Materials | Core integrity fell below 20% 1383 | -9/Materials | Lost 6 parts (2p2n1u1w) 1414 | -9/Materials | Destroyed by Y-45 Defender with Heavy Assault Rifle Last Messages --------------- (Smash). 01387_ Destroyed Hvy. Assault Rifle. 01387_ Destroyed Lgt. Armor Plating. 01387_ Y-45 Defender system corrupted by crushing effect. 01388_ Y-45 Defender system terminally corrupted. 01388_ Beam Rifle fried. 01388_ K-01 Serf collects debris. 01389_ Acquired 40 matter. 01389_ Sneak attack on M-13 Machinist. 01389_ Destroyed Machine Analyzer. 01389_ Destroyed Lgt. Ion Engine. 01389_ M-13 Machinist system corrupted by crushing effect. 01389_ M-13 Machinist knocked back. 01390_ M-13 Machinist system terminally corrupted. 01390_ Wheel fried. 01392_ K-01 Serf collects debris. Map ----- +----------------------------------------------------+ | ?????????????????????????????????????????????????? | | ????????????????????????????? ??????????????????? | | ????????????????????????????? ??????????????????? | | ????????????????????????????? "???? ???????????? | | ????????????????????????????# "?? #?????????? | | ????????????????????????????# ? #?????????? | | ????????????????????????????# #?????????? | | ????????????????????????????# #?????????? | | ????????????????????????????# """ #?????????? | | ????????????????????????????# """ #?????????? | | ????????????????????????????# """ ##????????? | | ????????????????????????????# #????????? | | ????????????????????????????# # "??????? | | ????????????????????????????#!!= ^/ ???????? | | ????????????????????????????#!!= #????????? | | ????????????????????????????#!== #????????? | | ????????????????????????????# #????????? | | ????????????????????????????# #????????? | | ????????????????????????????# #????????? | | ????????????????############# #????????? | | ????????????????# # ###??????? | | ????????????????# # #??????? | | ????????????????# =#% // #??????? | | ????????????????# "" +* // #??????? | | ????????????????# """ / # #??????? | | ????????????????# """ /@ # #??????? | | ???????????????# Y # ###### ##??????? | | ???????????????############## #????? #???????? | | ?????????????????????######## #?????? #???????? | | ?????????????????????# #??????? #???????? | | ?????????????????????# #????????????????? | | ?????????????????????# #????????????????? | | ?????????????????????## #########????????????????? | | ??????????????????????# #????????????????????????? | | ??????????????????????# #????????????????????????? | | ??????????????????????# #????????????????????????? | | ??????????????????????# #????????????????????????? | | ??????????????????????# #????????????????????????? | | ??????????????????????# #????????????????????????? | | ??????????????????????# #????????????????????????? | | ??????????????????????# #????????????????????????? | | ??????????????????????# #????????????????????????? | | ??????????????????????# #????????????????????????? | | ??????????????????????# #####????????????????????? | | ??????################# #????????????????????? | | ????? #????????????????????? | | ????? T #????????????????????? | | ????? #????????????????????? | | ????????###########+### #????????????????????? | | ????????????# % ## ##??????+?????????????? | +----------------------------------------------------+ Best States ------------- Heat Dissipation 28 Energy Generation 10 Energy Capacity 125 Matter Stores 312 Matter Capacity 400 Sight Range 16 Robot Scan Range 14 Terrain Scan Density 10 Evasion (%) 55 Item Schematics ----------------- None Robot Schematics ------------------ None Fabricated ------------ Nothing Repaired ---------- Nothing Studied --------- None Alien Tech Used ----------------- None Achievements -------------- None Challenges ------------ None Game ------ Seed FluxTimingMegatreads Manual? 0 Play Time 00:07:53 Cumulative 37.1 hours Start 2025.11.25 @ 15:18:27 End 2025.11.25 @ 15:24:29 Sessions 1 Manual Loads 0 Difficulty Rogue Special Mode None Game No. 111 Rogue 111 Adventurer 0 Explorer 0 Win Type - Total 0 Types 0/0/0/0/0/0/0/0/0/0 Lore% 16 Gallery% 26 Achievement% 20 Wizard Run 0 Options --------- Layout 1 ASCII 0 Keyboard 0 Movement Mouse Keybinds 0 Fullscreen 1 Font 24/Terminus Map View 50x35 Zoom Use 0% Tactical HUD 1 Map Filters NONE Filters NONE Steam 1 RUN: 283b3849-6506-4c39-8ee7-e4c4bf95dc93